{"text_format":"1","workbook":"xlsx","n_sheets":14,"sheets":["Cover","Info","Results","E01","E02","E03","E04","E05","E06","E07","E08","E09","E10","About"],"not_rendered":{"charts":11,"images":38,"macros":1,"external_links":0,"defined_names":15,"comments":0,"pivot_tables":0},"unopened":[],"bounds":{"document_bytes":16777216,"sheet_cells":100000,"rows_first":2000,"rows_last":500,"rows_between":2000,"halvings":0,"cell_chars":16384,"cell_head_chars":4096},"cells_cut":0,"cells_raw":0,"read":"whole","date_system":"1900"}

{"sheet":"Cover","index":0,"n_rows":0,"n_cols":0,"rows_kept":0,"cut":false,"hidden":false,"merged":[]}

{"sheet":"Info","index":1,"n_rows":39,"n_cols":4,"rows_kept":39,"cut":false,"hidden":false,"merged":[[38,1,38,3],[39,1,39,3],[2,1,2,2],[3,1,3,2],[4,1,4,2],[5,1,5,2],[6,1,6,2],[37,1,37,3],[31,1,31,2],[32,1,32,2],[33,1,33,2],[34,1,34,2],[35,1,35,2]]}
[]
[]
[null,"Ova procena",null,"Odgovor"]
[null,"Ime grada"]
[null,"Vrsta grada (opština, gradsko područje itd.)"]
[null,"Zemlja"]
[null,"Datum procene"]
[]
[null,"Profil grada (obavezno)","Odgovor","Datum izvora"]
[null,"Zvanje najvišeg nivoa vlasti (npr. gradonačelnik itd.)"]
[null,"Ukupan broj stanovnika grada:"]
[null,"Površina grada u kvadratnim metrima:"]
[null,"Gustina naseljenosti (po kvadratnom metru):"]
[null,"Stanovnici koji su omladina (15-24) (%):"]
[null,"Stanovnici koji su starija lica (65+) (%):"]
[null,"Pol (domaćinstva na čijem su čelu žene):"]
[null,"Stopa pismenosti (% pismenog stanovništva):"]
[null,"Stopa siromaštva (% stanovništva koje ne živi u siromaštvu):"]
[null,"Prosečni prihod domaćinstva (USD):"]
[null,"Stanovnici koji nisu građani (%):"]
[null,"Najverovatniji poznati rizik od katastrofe:"]
[null,"Najozbiljnija poznata katastrofa:"]
[]
[null,"Profil grada (izborno)","Odgovor","Datum izvora"]
[null,"Ukupan broj domaćinstava:"]
[null,"Broj osoba po jedinici domaćinstva:"]
[null,"Troškovi života (USD):"]
[null,"BDP zemlje po glavi stanovnika (USD):"]
[null,"Džinijev koeficijent:"]
[null,"Proizvod grada po glavi stanovnika (USD):"]
[]
[null,"Tim lokalne vlade za otpornost i smanjenje rizika od katastrofa",null,"Odgovor"]
[null,"Ime osobe koja vodi/koordiniše izradu procene u Obrascu za ocenjivanje:"]
[null,"Organizacija:"]
[null,"Kontaktni detalji:"]
[null,"Spremnost na deljenje rezultata ili njihovu upotrebu za primer/studiju slučaja od strane UNDRR-a i partnera:"]
[]
[null,"Informacije o zainteresovanim stranama"]
[null,"Molimo da navedete sve zainteresovane strane (aktere) koji su podržali ovu procenu."]

{"sheet":"Results","index":2,"n_rows":221,"n_cols":13,"rows_kept":221,"cut":false,"hidden":false,"merged":[[158,1,158,3],[134,1,134,6],[136,2,136,5],[137,2,137,5],[138,2,138,5],[139,2,139,5],[140,2,140,5],[141,2,141,5],[142,2,142,5],[146,1,146,6],[148,2,148,5],[149,2,149,5],[111,2,111,5],[98,2,98,5],[94,1,94,6],[96,2,96,5],[97,2,97,5],[106,1,106,6],[108,2,108,5],[109,2,109,5],[110,2,110,5],[99,2,99,5],[100,2,100,5],[101,2,101,5],[89,2,89,5],[85,1,85,6],[74,2,74,5],[75,2,75,5],[76,2,76,5],[77,2,77,5],[87,2,87,5],[88,2,88,5],[51,2,51,5],[61,2,61,5],[62,2,62,5],[63,2,63,5],[64,2,64,5],[131,2,131,5],[35,2,35,5],[36,2,36,5],[37,2,37,5],[123,2,123,5],[124,2,124,5],[125,2,125,5],[47,2,47,5],[48,2,48,5],[49,2,49,5],[50,2,50,5],[126,2,126,5],[127,2,127,5],[128,2,128,5],[129,2,129,5],[130,2,130,5]]}
[]
[]
[]
[]
[]
[]
[]
[]
[]
[]
[]
[]
[]
[]
[]
[]
[]
[]
[]
[]
[]
[]
[]
[]
[]
[]
[]
[]
[]
[]
[]
[]
[]
[null,"Osnovna Stavka 01: Organizovati se za otpornost"]
[]
[null,{"$f":"C175","v":"P1.1"},{"$f":"E175","v":"Da li urbanistički plan grada (ili druga relevantna strategija ili plan) uključuje i sprovodi pristupe smanjenja rizika od katastrofa u skladu sa Okvirom iz Sendaija?"},null,null,null,{"$f":"F175","v":0}]
[null,{"$f":"C176","v":"P1.2"},{"$f":"E176","v":"Postoji li mehanizam koji uključuje više agencija/sektora i koji ima odgovarajući autoritet i sredstva da se bavi smanjenjem rizika od katastrofa?"},null,null,null,{"$f":"F176","v":0}]
[null,{"$f":"C177","v":"P1.3"},{"$f":"E177","v":"Da li je otpornost prikladno integrisana sa drugim ključnim gradskim funkcijama/portfeljima? "},null,null,null,{"$f":"F177","v":0}]
[]
[]
[]
[]
[]
[]
[]
[null,"Osnovna Stavka 02: Identifikovati, razumeti i koristiti trenutne i buduće scenarije rizika"]
[]
[null,{"$f":"C178","v":"P2.1"},{"$f":"E178","v":"Da li grad poseduje znanje o ključnim opasnostima sa kojima se suočava i sa verovatnoćom da do njih dođe?"},null,null,null,{"$f":"F178","v":0}]
[null,{"$f":"C179","v":"P2.2"},{"$f":"E179","v":"Da li postoji zajedničko razumevanje rizika od strane grada i raznih davaoca komunalnih usluga i drugih regionalnih i nacionalnih agencija koje imaju ulogu u upravljanju infrastrukturom kao što su električna energija, voda, putevi i železnice, u vezi sa tačkama pritiska na sistem i rizicima na nivou celog grada?"},null,null,null,{"$f":"F179","v":0}]
[null,{"$f":"C180","v":"P2.3"},{"$f":"E180","v":"Postoje li dogovoreni scenariji pripreme za izloženost i ugroženost na nivou celog grada za svaku posebnu opasnost ili grupe opasnosti (videti gore)?"},null,null,null,{"$f":"F180","v":0}]
[null,{"$f":"C181","v":"P2.4"},{"$f":"E181","v":"Postoji li zajedničko razumevanje potencijalnih kaskadnih neuspeha među raznim gradskim i infrastrukturnim sistemima, u različitim scenarijima?"},null,null,null,{"$f":"F181","v":0}]
[null,{"$f":"C182","v":"P2.5"},{"$f":"E182","v":"Postoje li jasne mape opasnosti i informacije o rizicima? Da li se redovno ažuriraju?"},null,null,null,{"$f":"F182","v":0}]
[]
[]
[]
[]
[]
[]
[]
[null,"Osnovna Stavka 03: Ojačati finansijski kapacitet za otpornost"]
[]
[null,{"$f":"C183","v":"P3.1"},{"$f":"E183","v":"Grad/glavne agencije razumeju sve izvore finansiranja i „dividende otpornosti“, dobro su povezani, razumeju sve raspoložive pristupe spoljnom finansiranju i aktivno traže finansiranja za veće investicije u izgradnju otpornosti."},null,null,null,{"$f":"F183","v":0}]
[null,{"$f":"C184","v":"P3.2"},{"$f":"E184","v":"Da li grad ima konkretan „posebni“ (zaštićeni) budžet, potrebna sredstva za redovne i vanredne slučajeve i aranžmane za lokalno smanjenje rizika od katastrofa (ublažavanje, sprečavanje, odgovor na katastrofu i oporavak)?"},null,null,null,{"$f":"F184","v":0}]
[null,{"$f":"C185","v":"P3.3"},{"$f":"E185","v":"Koji nivo pokrivenosti osiguranjem postoji u gradu, u svim sektorima poslovanja i zajednice?"},null,null,null,{"$f":"F185","v":0}]
[null,{"$f":"C186","v":"P3.4"},{"$f":"E186","v":"Koji su podsticaji dostupni za različite sektore i segmente poslovanja i društva radi pružanja podrške izgradnji otpornosti?"},null,null,null,{"$f":"F186","v":0}]
[]
[]
[]
[]
[]
[]
[]
[null,"Osnovna Stavka 04: Ostvariti otporni urbani razvoj"]
[]
[null,{"$f":"C187","v":"P4.1"},{"$f":"E187","v":"Da li je grad adekvatno podeljen u zone imajući u vidu, na primer, efekat ključnih scenarija rizika na privredne delatnosti, poljoprivrednu proizvodnju i centre stanovanja?"},null,null,null,{"$f":"F187","v":0}]
[null,{"$f":"C188","v":"P4.2"},{"$f":"E188","v":"Da li se podstiču pristupi projektovanja novog urbanog razvoja radi unapređenja otpornosti?"},null,null,null,{"$f":"F188","v":0}]
[null,{"$f":"C189","v":"P4.3"},{"$f":"E189","v":"Da li postoje građevinski kodeksi i standardi, i da li se bave zasebnim poznatim opasnostima i rizicima u gradu? Da li se ti standardi redovno ažuriraju?"},null,null,null,{"$f":"F189","v":0}]
[null,{"$f":"C190","v":"P4.4"},{"$f":"E190","v":"Da li se pravila zoniranja, građevinskih kodeksa i standarda naširoko primenjuju, ispravno sprovode i proveravaju?"},null,null,null,{"$f":"F190","v":0}]
[]
[]
[]
[]
[]
[]
[]
[null,"Osnovna Stavka 05: Očuvati prirodne amortizere kako bi se unapredile zaštitne funkcije prirodnih ekosistema "]
[]
[null,{"$f":"C191","v":"P5.1"},{"$f":"E191","v":"Pored pukog razumevanja prirodnih dobara, da li grad razume funkcije (ili usluge) koje mu pruža ovaj prirodni kapital?"},null,null,null,{"$f":"F191","v":0}]
[null,{"$f":"C192","v":"P5.2"},{"$f":"E192","v":"Da li se kroz politiku podstiču zelena i plava infrastruktura u većim projektima urbanog razvoja i infrastrukture?"},null,null,null,{"$f":"F192","v":0}]
[null,{"$f":"C193","v":"P5.3"},{"$f":"E193","v":"Da li je grad svestan usluga ekosistema koje mu pruža prirodni kapital van administrativnih granica samog grada? Postoje li dogovori sa susednim gradskim upravama za podržavanje zaštite i upravljanja ovim dobrima?"},null,null,null,{"$f":"F193","v":0}]
[]
[]
[]
[]
[null,"Osnovna Stavka 06: Ojačati institucionalni kapacitet za otpornost"]
[]
[null,{"$f":"C194","v":"P6.1"},{"$f":"E194","v":"Da li grad ima jasan pristup svim veštinama i iskustvu koje smatra potrebnim za odgovor radi smanjenja rizika i odgovor na identifikovane scenarije katastrofa?"},null,null,null,{"$f":"F194","v":0}]
[null,"P6.2","Postoji li koordinisana kampanja za odnose sa javnošću i obrazovanje javnosti, sa strukturisanim porukama i kanalima za  ispravno širenje u javnosti informacija (koje se mogu razumeti i koristiti) o opasnostima, rizicima i katastrofama?",null,null,null,0]
[null,"P6.3","U kojoj meri se podaci o kontekstu otpornosti grada dele sa drugim organizacijama koje su uključene u otpornost grada?",null,null,null,0]
[null,"P6.4","Postoje li kursevi i obuke koji se bave pitanjima rizika i otpornosti i da li se oni nude svim sektorima grada uključujući vlast,  poslovni sektor, NVO-e i lokalnu zajednicu?",null,null,null,0]
[null,"P6.5","Da li su dostupni materijali za obuke na većini jezika koji se govore u gradu?",null,null,null,0]
[null,"P6.6","Da li grad proaktivno teži da razmeni iskustvo i uči od drugih gradova koji se suočavaju sa sličnim izazovima?",null,null,null,0]
[]
[]
[]
[]
[null,"Osnovna Stavka 07:  Razumeti i ojačati društveni kapacitet za otpornost"]
[]
[null,{"$f":"C200","v":"P7.1"},{"$f":"E200","v":"Da li su društvene organizacije i organizacije građanskog aktivizma uključene u planiranje koje prethodi katastrofi i mere koje se preduzimaju posle katastrofe za svaki deo grada?"},null,null,null,{"$f":"F200","v":0}]
[null,{"$f":"C201","v":"P7.2"},{"$f":"E201","v":"Da li se obezbeđuju redovni programi obuke za najugroženije i  najsiromašnije delove gradskog stanovništva?"},null,null,null,{"$f":"F201","v":0}]
[null,{"$f":"C202","v":"P7.3"},{"$f":"E202","v":"Koji udeo firmi ima dokumentovani plan kontinuiteta poslovanja koji je revidiran u poslednjih 18 meseci?"},null,null,null,{"$f":"F202","v":0}]
[null,{"$f":"C203","v":"P7.4"},{"$f":"E203","v":"Koliko je uspešan grad u uključivanju građana i komunikaciji vezanoj za smanjenje rizika od katastrofa?"},null,null,null,{"$f":"F203","v":0}]
[]
[]
[]
[]
[]
[]
[]
[]
[]
[null,"Osnovna Stavka 08: Povećati otpornost infrastrukture"]
[]
[null,{"$f":"C204","v":"P8.1"},{"$f":"E204","v":"Da li je otpornost ključne infrastrukture jedan od prioriteta grada, da li grad poseduje i sprovodi plan ili strategiju za ključnu infrastrukturu?"},null,null,null,{"$f":"F204","v":0}]
[null,{"$f":"C205","v":"P8.2"},{"$f":"E205","v":"Da li je postojeća zaštitna infrastruktura dobro projektovana i dobro izgrađena na osnovu informacija o riziku?"},null,null,null,{"$f":"F205","v":0}]
[null,"P8.3",{"$f":"E206","v":"Da li bi, po dogovorenim scenarijima katastrofa, bio očekivan značajan gubitak pružanja ove dve osnovne usluge za veliki deo grada?"},null,null,null,0]
[null,"P8.4",{"$f":"E207","v":"Da li bi u „najozbiljnijem“ scenariju bio očekivan značajan gubitak pružanja ove usluge za veliki deo grada? U slučaju kvara, da li bi koridori energetske infrastrukture bili bezbedni (tj. bez rizika od curenja, opasnosti od strujnog udara itd.)?"},null,null,null,0]
[null,"P8.5","Da li bi u „najozbiljnijem“ scenariju bio očekivan značajan gubitak pružanja ove usluge za veliki deo grada? U slučaju kvara, da li bi koridori transportne infrastrukture bili bezbedni (tj. bez rizika od poplave, strujnog udara itd.) i prohodni?",null,null,null,0]
[null,"P8.6","Da li bi u „najozbiljnijem“ scenariju bio očekivan značajan gubitak pružanja ovih usluga za veliki deo grada?",null,null,null,0]
[null,"P8.7","Da li bi u „najozbiljnijem“ scenariju bilo dovoljno kapaciteta za zdravstvenu negu očekivanog broja pacijenata sa akutnim stanjima od većih povreda?",null,null,null,0]
[null,"P8.8","% obrazovnih ustanova koje su izložene riziku od oštećenja u „najverovatnijem“ i „najozbiljnijem“ scenariju",null,null,null,0]
[null,{"$f":"C212","v":"P8.9"},"Da li će biti dovoljno opreme za prvi odgovor na katastrofu, uz vojnu ili civilnu podršku ukoliko bude neophodno?",null,null,null,0]
[]
[]
[null,"Osnovna Stavka 09: Osigurati delotvoran odgovor na katastrofe"]
[]
[null,{"$f":"C213","v":"P9.1"},{"$f":"E213","v":"Da li grad ima plan ili standardnu operativnu proceduru za reagovanje na rana upozorenja i prognoze? Do kolikog udela stanovništva se može dopreti sistemom ranog upozoravanja?"},null,null,null,{"$f":"F213","v":0}]
[null,{"$f":"C214","v":"P9.2"},"Postoji li plan za delovanje/spremnost u slučaju katastrofe ili plan za odgovor na vanredne situacije koji sadrži pregled postupaka za ublažavanje, spremnost i odgovor na lokalne vanredne situacije?",null,null,null,0]
[null,"P9.3","Da li organ vlasti koji je odgovoran za delovanje u slučaju katastrofa ima dovoljan kadrovski kapacitet kako bi ispunio dužnosti prvog odgovora u slučaju iznenadnog porasta potrebe za intervencijom?",null,null,null,0]
[null,"P9.4","Da li su jasno definisane potrebe vezane za opremu i pružanje pomoći, kao i raspoloživost te opreme?",null,null,null,0]
[null,"P9.5","Da li bi grad bio u stanju da nastavi da hrani i pruža utočište svom stanovništvu posle katastrofe?",null,null,null,0]
[null,"P9.6","Postoji li centar za vanredne situacije u kome učestvuju sve agencije, a koji automatizuje standardne procedure koje su specifično osmišljene kako bi se koristile u „najverovatnijim“ i „najozbiljnijim“ scenarijima?",null,null,null,0]
[null,"P9.7","Da li vežbe uključuju i građanstvo i stručna lica?",null,null,null,0]
[]
[]
[]
[null,"Osnovna Stavka 10: Ubrzati oporavak i izgraditi bolji sistem nego pre katastrofe "]
[]
[null,{"$f":"C220","v":"P10.1"},{"$f":"E220","v":"Postoji li strategija ili proces za oporavak i građenje boljeg sistema posle katastrofe, uključujući ponovno pokretanje privrede, društvene aspekte i sl.?"},null,null,null,{"$f":"F220","v":0}]
[null,{"$f":"C221","v":"P10.2"},{"$f":"E221","v":"Da li procesi za procenu situacije nakon katastrofa uključuju analize neuspeha i sposobnost izvlačenja pouka koje zatim bivaju uključene u projektovanje i sprovođenje projekata za ponovnu izgradnju?"},null,null,null,{"$f":"F221","v":0}]
[]
[]
[]
[]
[]
[]
[]
[]
[null,{"$f":"TODAY()","v":"2021-03-19"}]
[]
[]
[null,null,"Label","Name",null,"Essential","TotalScore","MaxScore","Label"]
[null,null,"S1","1.   Organizovati se za otpornost",null,"E1",{"$f":"SUMIFS($F$175:$F$1154,$B$175:$B$1154,F163)","v":0},{"$f":"COUNTIFS($B$175:$B$221,F163)*3","v":9},"01",null,{"$f":"SUM(G163:G172)","v":0},{"$f":"K163/K164","v":0},{"$f":"CONCATENATE(\"Ukupni broj bodova za ovu procenu je \",SUM(G163:G172),\" / \",SUM(H163:H172))","v":"Ukupni broj bodova za ovu procenu je 0 / 141"}]
[null,null,"S2","2.   Identifikovati, razumeti i koristiti trenutne i buduće scenarije rizika",null,"E2",0,15,"02",null,{"$f":"SUM(H163:H172)","v":141},{"$f":"1-L163","v":1}]
[null,null,"S3","3.   Ojačati finansijski kapacitet za otpornost",null,"E3",0,12,"03"]
[null,null,"S4","4.   Ostvariti otporni urbani razvoj",null,"E4",0,12,"04"]
[null,null,"S5","5.   Očuvati prirodne amortizere kako bi se unapredile zaštitne funkcije prirodnih ekosistema",null,"E5",0,9,"05"]
[null,null,"S6","6.   Ojačati institucionalni kapacitet za otpornost",null,"E6",0,18,"06"]
[null,null,"S7","7.   Razumeti i ojačati društveni kapacitet za otpornost",null,"E7",0,12,"07"]
[null,null,"S8","8.   Povećati otpornost infrastrukture",null,"E8",0,27,"08"]
[null,null,"S9","9.   Osigurati delotvoran odgovor na katastrofe",null,"E9",0,21,"09"]
[null,null,"S10","10. Ubrzati oporavak i izgraditi bolji sistem nego pre katastrofe ",null,"E10",0,6,"10"]
[]
[null,"Section","Ref",null,"Question","SelectedScore","ThisScore"]
[null,"E1","P1.1",null,"Da li urbanistički plan grada (ili druga relevantna strategija ili plan) uključuje i sprovodi pristupe smanjenja rizika od katastrofa u skladu sa Okvirom iz Sendaija?",{"$f":"IF(G175=\"\",0,IF(G175=0,0,4-G175))","v":0},{"$f":"'E01'!$E$7","v":0}]
[null,"E1","P1.2",null,"Postoji li mehanizam koji uključuje više agencija/sektora i koji ima odgovarajući autoritet i sredstva da se bavi smanjenjem rizika od katastrofa?",{"$f":"IF(G176=\"\",0,IF(G176=0,0,4-G176))","v":0},{"$f":"'E01'!$E$18","v":0}]
[null,"E1","P1.3",null,"Da li je otpornost prikladno integrisana sa drugim ključnim gradskim funkcijama/portfeljima? ",0,{"$f":"'E01'!$E$29","v":0}]
[null,"E2","P2.1",null,"Da li grad poseduje znanje o ključnim opasnostima sa kojima se suočava i sa verovatnoćom da do njih dođe?",0,{"$f":"'E02'!$E$7","v":0}]
[null,"E2","P2.2",null,"Da li postoji zajedničko razumevanje rizika od strane grada i raznih davaoca komunalnih usluga i drugih regionalnih i nacionalnih agencija koje imaju ulogu u upravljanju infrastrukturom kao što su električna energija, voda, putevi i železnice, u vezi sa tačkama pritiska na sistem i rizicima na nivou celog grada?",0,{"$f":"'E02'!$E$18","v":0}]
[null,"E2","P2.3",null,"Postoje li dogovoreni scenariji pripreme za izloženost i ugroženost na nivou celog grada za svaku posebnu opasnost ili grupe opasnosti (videti gore)?",0,{"$f":"'E02'!$E$29","v":0}]
[null,"E2","P2.4",null,"Postoji li zajedničko razumevanje potencijalnih kaskadnih neuspeha među raznim gradskim i infrastrukturnim sistemima, u različitim scenarijima?",0,{"$f":"'E02'!$E$40","v":0}]
[null,"E2","P2.5",null,"Postoje li jasne mape opasnosti i informacije o rizicima? Da li se redovno ažuriraju?",0,{"$f":"'E02'!$E$51","v":0}]
[null,"E3","P3.1",null,"Grad/glavne agencije razumeju sve izvore finansiranja i „dividende otpornosti“, dobro su povezani, razumeju sve raspoložive pristupe spoljnom finansiranju i aktivno traže finansiranja za veće investicije u izgradnju otpornosti.",0,{"$f":"'E03'!$E$7","v":0}]
[null,"E3","P3.2",null,"Da li grad ima konkretan „posebni“ (zaštićeni) budžet, potrebna sredstva za redovne i vanredne slučajeve i aranžmane za lokalno smanjenje rizika od katastrofa (ublažavanje, sprečavanje, odgovor na katastrofu i oporavak)?",0,{"$f":"'E03'!$E$18","v":0}]
[null,"E3","P3.3",null,"Koji nivo pokrivenosti osiguranjem postoji u gradu, u svim sektorima poslovanja i zajednice?",0,{"$f":"'E03'!$E$29","v":0}]
[null,"E3","P3.4",null,"Koji su podsticaji dostupni za različite sektore i segmente poslovanja i društva radi pružanja podrške izgradnji otpornosti?",0,{"$f":"'E03'!$E$40","v":0}]
[null,"E4","P4.1",null,"Da li je grad adekvatno podeljen u zone imajući u vidu, na primer, efekat ključnih scenarija rizika na privredne delatnosti, poljoprivrednu proizvodnju i centre stanovanja?",0,{"$f":"'E04'!$E$7","v":0}]
[null,"E4","P4.2",null,"Da li se podstiču pristupi projektovanja novog urbanog razvoja radi unapređenja otpornosti?",0,{"$f":"'E04'!$E$18","v":0}]
[null,"E4","P4.3",null,"Da li postoje građevinski kodeksi i standardi, i da li se bave zasebnim poznatim opasnostima i rizicima u gradu? Da li se ti standardi redovno ažuriraju?",0,{"$f":"'E04'!$E$29","v":0}]
[null,"E4","P4.4",null,"Da li se pravila zoniranja, građevinskih kodeksa i standarda naširoko primenjuju, ispravno sprovode i proveravaju?",0,{"$f":"'E04'!$E$40","v":0}]
[null,"E5","P5.1",null,"Pored pukog razumevanja prirodnih dobara, da li grad razume funkcije (ili usluge) koje mu pruža ovaj prirodni kapital?",0,{"$f":"'E05'!$E$7","v":0}]
[null,"E5","P5.2",null,"Da li se kroz politiku podstiču zelena i plava infrastruktura u većim projektima urbanog razvoja i infrastrukture?",0,{"$f":"'E05'!$E$18","v":0}]
[null,"E5","P5.3",null,"Da li je grad svestan usluga ekosistema koje mu pruža prirodni kapital van administrativnih granica samog grada? Postoje li dogovori sa susednim gradskim upravama za podržavanje zaštite i upravljanja ovim dobrima?",0,{"$f":"'E05'!$E$29","v":0}]
[null,"E6","P6.1",null,"Da li grad ima jasan pristup svim veštinama i iskustvu koje smatra potrebnim za odgovor radi smanjenja rizika i odgovor na identifikovane scenarije katastrofa?",0,{"$f":"'E06'!$E$7","v":0}]
[null,"E6","P6.2",null,"Postoji li koordinisana kampanja za odnose sa javnošću i obrazovanje javnosti, sa strukturisanim porukama i kanalima za  ispravno širenje u javnosti informacija (koje se mogu razumeti i koristiti) o opasnostima, rizicima i katastrofama?",0,{"$f":"'E06'!$E$18","v":0}]
[null,"E6","P6.3",null,"U kojoj meri se podaci o kontekstu otpornosti grada dele sa drugim organizacijama koje su uključene u otpornost grada?",0,{"$f":"'E06'!$E$29","v":0}]
[null,"E6","P6.4",null,"Postoje li kursevi i obuke koji se bave pitanjima rizika i otpornosti i da li se oni nude svim sektorima grada uključujući vlast,  poslovni sektor, NVO-e i lokalnu zajednicu?",0,{"$f":"'E06'!$E$40","v":0}]
[null,"E6","P6.5",null,"Da li su dostupni materijali za obuke na većini jezika koji se govore u gradu?",0,{"$f":"'E06'!$E$51","v":0}]
[null,"E6","P6.6",null,"Da li grad proaktivno teži da razmeni iskustvo i uči od drugih gradova koji se suočavaju sa sličnim izazovima?",0,{"$f":"'E06'!$E$62","v":0}]
[null,"E7","P7.1",null,"Da li su društvene organizacije i organizacije građanskog aktivizma uključene u planiranje koje prethodi katastrofi i mere koje se preduzimaju posle katastrofe za svaki deo grada?",0,{"$f":"'E07'!$E$7","v":0}]
[null,"E7","P7.2",null,"Da li se obezbeđuju redovni programi obuke za najugroženije i  najsiromašnije delove gradskog stanovništva?",0,{"$f":"'E07'!$E$18","v":0}]
[null,"E7","P7.3",null,"Koji udeo firmi ima dokumentovani plan kontinuiteta poslovanja koji je revidiran u poslednjih 18 meseci?",0,{"$f":"'E07'!$E$29","v":0}]
[null,"E7","P7.4",null,"Koliko je uspešan grad u uključivanju građana i komunikaciji vezanoj za smanjenje rizika od katastrofa?",0,{"$f":"'E07'!$E$40","v":0}]
[null,"E8","P8.1",null,"Da li je otpornost ključne infrastrukture jedan od prioriteta grada, da li grad poseduje i sprovodi plan ili strategiju za ključnu infrastrukturu?",0,{"$f":"'E08'!E7","v":0}]
[null,"E8","P8.2",null,"Da li je postojeća zaštitna infrastruktura dobro projektovana i dobro izgrađena na osnovu informacija o riziku?",0,{"$f":"'E08'!E18","v":0}]
[null,"E8","P8.3",null,"Da li bi, po dogovorenim scenarijima katastrofa, bio očekivan značajan gubitak pružanja ove dve osnovne usluge za veliki deo grada?",0,{"$f":"'E08'!E29","v":0}]
[null,"E8","P8.4",null,"Da li bi u „najozbiljnijem“ scenariju bio očekivan značajan gubitak pružanja ove usluge za veliki deo grada? U slučaju kvara, da li bi koridori energetske infrastrukture bili bezbedni (tj. bez rizika od curenja, opasnosti od strujnog udara itd.)?",0,{"$f":"'E08'!E40","v":0}]
[null,"E8","P8.5",null,"Da li bi u „najozbiljnijem“ scenariju bio očekivan značajan gubitak pružanja ove usluge za veliki deo grada? U slučaju kvara, da li bi koridori transportne infrastrukture bili bezbedni (tj. bez rizika od poplave, strujnog udara itd.) i prohodni?",0,{"$f":"'E08'!E51","v":0}]
[null,"E8","P8.6",null,"Da li bi u „najozbiljnijem“ scenariju bio očekivan značajan gubitak pružanja ovih usluga za veliki deo grada?",0,{"$f":"'E08'!E62","v":0}]
[null,"E8","P8.7",null,"Da li bi u „najozbiljnijem“ scenariju bilo dovoljno kapaciteta za zdravstvenu negu očekivanog broja pacijenata sa akutnim stanjima od većih povreda?",0,{"$f":"'E08'!E73","v":0}]
[null,"E8","P8.8",null,"% obrazovnih ustanova koje su izložene riziku od oštećenja u „najverovatnijem“ i „najozbiljnijem“ scenariju",0,{"$f":"'E08'!E84","v":0}]
[null,"E8","P8.9",null,"Da li će biti dovoljno opreme za prvi odgovor na katastrofu, uz vojnu ili civilnu podršku ukoliko bude neophodno?",0,{"$f":"'E08'!E95","v":0}]
[null,"E9","P9.1",null,"Da li grad ima plan ili standardnu operativnu proceduru za reagovanje na rana upozorenja i prognoze? Do kolikog udela stanovništva se može dopreti sistemom ranog upozoravanja?",0,{"$f":"'E09'!$E$7","v":0}]
[null,"E9","P9.2",null,"Postoji li plan za delovanje/spremnost u slučaju katastrofe ili plan za odgovor na vanredne situacije koji sadrži pregled postupaka za ublažavanje, spremnost i odgovor na lokalne vanredne situacije?",0,{"$f":"'E09'!$E$18","v":0}]
[null,"E9","P9.3",null,"Da li organ vlasti koji je odgovoran za delovanje u slučaju katastrofa ima dovoljan kadrovski kapacitet kako bi ispunio dužnosti prvog odgovora u slučaju iznenadnog porasta potrebe za intervencijom?",0,{"$f":"'E09'!$E$29","v":0}]
[null,"E9","P9.4",null,"Da li su jasno definisane potrebe vezane za opremu i pružanje pomoći, kao i raspoloživost te opreme?",0,{"$f":"'E09'!$E$40","v":0}]
[null,"E9","P9.5",null,"Da li bi grad bio u stanju da nastavi da hrani i pruža utočište svom stanovništvu posle katastrofe?",0,{"$f":"'E09'!$E$51","v":0}]
[null,"E9","P9.6",null,"Postoji li centar za vanredne situacije u kome učestvuju sve agencije, a koji automatizuje standardne procedure koje su specifično osmišljene kako bi se koristile u „najverovatnijim“ i „najozbiljnijim“ scenarijima?",0,{"$f":"'E09'!$E$62","v":0}]
[null,"E9","P9.7",null,"Da li vežbe uključuju i građanstvo i stručna lica?",0,{"$f":"'E09'!$E$73","v":0}]
[null,"E10","P10.1",null,"Postoji li strategija ili proces za oporavak i građenje boljeg sistema posle katastrofe, uključujući ponovno pokretanje privrede, društvene aspekte i sl.?",0,{"$f":"'E10'!$E$7","v":0}]
[null,"E10","P10.2",null,"Da li procesi za procenu situacije nakon katastrofa uključuju analize neuspeha i sposobnost izvlačenja pouka koje zatim bivaju uključene u projektovanje i sprovođenje projekata za ponovnu izgradnju?",0,{"$f":"'E10'!$E$18","v":0}]

{"sheet":"E01","index":3,"n_rows":33,"n_cols":6,"rows_kept":33,"cut":false,"hidden":false,"merged":[[17,2,20,3],[25,2,25,3],[26,2,26,3],[27,2,27,3],[28,2,31,3],[16,2,16,3],[4,2,4,3],[3,2,3,3],[5,2,5,3],[6,2,9,3],[14,2,14,3],[15,2,15,3]]}
[]
[]
[null,"P1.1 - Izrada plana"]
[null,"Pitanje","Komentari"]
[]
[null,"Odgovor","Navedite načine verifikacije/potvrde (objašnjenje i dokaze)"]
[null,null,null,null,null,{"$f":"IF(E7=1,TRUE,FALSE)","v":false}]
[null,null,null,null,null,{"$f":"IF(E7=2,TRUE,FALSE)","v":false}]
[null,null,null,null,null,{"$f":"IF(E7=3,TRUE,FALSE)","v":false}]
[null,null,null,null,null,{"$f":"IF(E7=4,TRUE,FALSE)","v":false}]
[null,"Akcije za postizanje maksimalne otpornosti","Odgovorna institucija","Vremenski okvir"]
[]
[]
[null,"P1.2 - Organizovanje, koordinisanje i učešće"]
[null,"Pitanje","Komentari"]
[]
[null,"Odgovor","Navedite načine verifikacije/potvrde (objašnjenje i dokaze)"]
[null,null,null,null,null,{"$f":"IF(E18=1,TRUE,FALSE)","v":false}]
[null,null,null,null,null,{"$f":"IF(E18=2,TRUE,FALSE)","v":false}]
[null,null,null,null,null,{"$f":"IF(E18=3,TRUE,FALSE)","v":false}]
[null,null,null,null,null,{"$f":"IF(E18=4,TRUE,FALSE)","v":false}]
[null,"Akcije za postizanje maksimalne otpornosti","Odgovorna institucija","Vremenski okvir"]
[]
[]
[null,"P1.3 - Integracija"]
[null,"Pitanje","Komentari"]
[]
[null,"Odgovor","Navedite načine verifikacije/potvrde (objašnjenje i dokaze)"]
[null,null,null,null,null,{"$f":"IF(E29=1,TRUE,FALSE)","v":false}]
[null,null,null,null,null,{"$f":"IF(E29=2,TRUE,FALSE)","v":false}]
[null,null,null,null,null,{"$f":"IF(E29=3,TRUE,FALSE)","v":false}]
[null,null,null,null,null,{"$f":"IF(E29=4,TRUE,FALSE)","v":false}]
[null,"Akcije za postizanje maksimalne otpornosti","Odgovorna institucija","Vremenski okvir"]

{"sheet":"E02","index":4,"n_rows":55,"n_cols":6,"rows_kept":55,"cut":false,"hidden":false,"merged":[[3,2,3,3],[4,2,4,3],[5,2,5,3],[6,2,9,3],[47,2,47,3],[48,2,48,3],[49,2,49,3],[50,2,53,3],[14,2,14,3],[15,2,15,3],[36,2,36,3],[37,2,37,3],[38,2,38,3],[39,2,42,3],[16,2,16,3],[17,2,20,3],[25,2,25,3],[26,2,26,3],[27,2,27,3],[28,2,31,3]]}
[]
[]
[null,"P2.1 - Procena opasnosti"]
[null,"Pitanje","Komentari"]
[]
[null,"Odgovor","Navedite načine verifikacije/potvrde (objašnjenje i dokaze)"]
[null,null,null,null,null,{"$f":"IF(E7=1,TRUE,FALSE)","v":false}]
[null,null,null,null,null,{"$f":"IF(E7=2,TRUE,FALSE)","v":false}]
[null,null,null,null,null,{"$f":"IF(E7=3,TRUE,FALSE)","v":false}]
[null,null,null,null,null,{"$f":"IF(E7=4,TRUE,FALSE)","v":false}]
[null,"Akcije za postizanje maksimalne otpornosti","Odgovorna institucija","Vremenski okvir"]
[]
[]
[null,"P2.2 - Zajedničko razumevanje rizika infrastrukture"]
[null,"Pitanje","Komentari"]
[]
[null,"Odgovor","Navedite načine verifikacije/potvrde (objašnjenje i dokaze)"]
[null,null,null,null,null,{"$f":"IF(E18=1,TRUE,FALSE)","v":false}]
[null,null,null,null,null,{"$f":"IF(E18=2,TRUE,FALSE)","v":false}]
[null,null,null,null,null,{"$f":"IF(E18=3,TRUE,FALSE)","v":false}]
[null,null,null,null,null,{"$f":"IF(E18=4,TRUE,FALSE)","v":false}]
[null,"Akcije za postizanje maksimalne otpornosti","Odgovorna institucija","Vremenski okvir"]
[]
[]
[null,"P2.3 - Znanje o izloženosti i ugroženosti"]
[null,"Pitanje","Komentari"]
[]
[null,"Odgovor","Navedite načine verifikacije/potvrde (objašnjenje i dokaze)"]
[null,null,null,null,null,{"$f":"IF(E29=1,TRUE,FALSE)","v":false}]
[null,null,null,null,null,{"$f":"IF(E29=2,TRUE,FALSE)","v":false}]
[null,null,null,null,null,{"$f":"IF(E29=3,TRUE,FALSE)","v":false}]
[null,null,null,null,null,{"$f":"IF(E29=4,TRUE,FALSE)","v":false}]
[null,"Akcije za postizanje maksimalne otpornosti","Odgovorna institucija","Vremenski okvir"]
[]
[]
[null,"P2.4 - Kaskadni uticaji"]
[null,"Pitanje","Komentari"]
[]
[null,"Odgovor","Navedite načine verifikacije/potvrde (objašnjenje i dokaze)"]
[null,null,null,null,null,{"$f":"IF(E40=1,TRUE,FALSE)","v":false}]
[null,null,null,null,null,{"$f":"IF(E40=2,TRUE,FALSE)","v":false}]
[null,null,null,null,null,{"$f":"IF(E40=3,TRUE,FALSE)","v":false}]
[null,null,null,null,null,{"$f":"IF(E40=4,TRUE,FALSE)","v":false}]
[null,"Akcije za postizanje maksimalne otpornosti","Odgovorna institucija","Vremenski okvir"]
[]
[]
[null,"P2.5 - Proces prezentacije i ažuriranja za informacije o rizicima"]
[null,"Pitanje","Komentari"]
[]
[null,"Odgovor","Navedite načine verifikacije/potvrde (objašnjenje i dokaze)"]
[null,null,null,null,null,{"$f":"IF(E51=1,TRUE,FALSE)","v":false}]
[null,null,null,null,null,{"$f":"IF(E51=2,TRUE,FALSE)","v":false}]
[null,null,null,null,null,{"$f":"IF(E51=3,TRUE,FALSE)","v":false}]
[null,null,null,null,null,{"$f":"IF(E51=4,TRUE,FALSE)","v":false}]
[null,"Akcije za postizanje maksimalne otpornosti","Odgovorna institucija","Vremenski okvir"]

{"sheet":"E03","index":5,"n_rows":44,"n_cols":6,"rows_kept":44,"cut":false,"hidden":false,"merged":[[15,2,15,3],[3,2,3,3],[4,2,4,3],[5,2,5,3],[6,2,9,3],[14,2,14,3],[13,1,13,3],[36,2,36,3],[37,2,37,3],[38,2,38,3],[39,2,42,3],[16,2,16,3],[17,2,20,3],[25,2,25,3],[26,2,26,3],[27,2,27,3],[28,2,31,3]]}
[]
[]
[null,"P3.1 - Znanje o pristupima za privlačenje novih investicija za grad"]
[null,"Pitanje","Komentari"]
[]
[null,"Odgovor","Navedite načine verifikacije/potvrde (objašnjenje i dokaze)"]
[null,null,null,null,null,{"$f":"IF(E7=1,TRUE,FALSE)","v":false}]
[null,null,null,null,null,{"$f":"IF(E7=2,TRUE,FALSE)","v":false}]
[null,null,null,null,null,{"$f":"IF(E7=3,TRUE,FALSE)","v":false}]
[null,null,null,null,null,{"$f":"IF(E7=4,TRUE,FALSE)","v":false}]
[null,"Akcije za postizanje maksimalne otpornosti","Odgovorna institucija","Vremenski okvir"]
[]
[]
[null,"P3.2 - Finansijski plan i budžet za građenje otpornosti, uključujući sredstva za vanredne slučajeve"]
[null,"Pitanje","Komentari"]
[]
[null,"Odgovor","Navedite načine verifikacije/potvrde (objašnjenje i dokaze)"]
[null,null,null,null,null,{"$f":"IF(E18=1,TRUE,FALSE)","v":false}]
[null,null,null,null,null,{"$f":"IF(E18=2,TRUE,FALSE)","v":false}]
[null,null,null,null,null,{"$f":"IF(E18=3,TRUE,FALSE)","v":false}]
[null,null,null,null,null,{"$f":"IF(E18=4,TRUE,FALSE)","v":false}]
[null,"Akcije za postizanje maksimalne otpornosti","Odgovorna institucija","Vremenski okvir"]
[]
[]
[null,"P3.3 - Osiguranje"]
[null,"Pitanje","Komentari"]
[]
[null,"Odgovor","Navedite načine verifikacije/potvrde (objašnjenje i dokaze)"]
[null,null,null,null,null,{"$f":"IF(E29=1,TRUE,FALSE)","v":false}]
[null,null,null,null,null,{"$f":"IF(E29=2,TRUE,FALSE)","v":false}]
[null,null,null,null,null,{"$f":"IF(E29=3,TRUE,FALSE)","v":false}]
[null,null,null,null,null,{"$f":"IF(E29=4,TRUE,FALSE)","v":false}]
[null,"Akcije za postizanje maksimalne otpornosti","Odgovorna institucija","Vremenski okvir"]
[]
[]
[null,"P3.4 - Podsticaji"]
[null,"Pitanje","Komentari"]
[]
[null,"Odgovor","Navedite načine verifikacije/potvrde (objašnjenje i dokaze)"]
[null,null,null,null,null,{"$f":"IF(E40=1,TRUE,FALSE)","v":false}]
[null,null,null,null,null,{"$f":"IF(E40=2,TRUE,FALSE)","v":false}]
[null,null,null,null,null,{"$f":"IF(E40=3,TRUE,FALSE)","v":false}]
[null,null,null,null,null,{"$f":"IF(E40=4,TRUE,FALSE)","v":false}]
[null,"Akcije za postizanje maksimalne otpornosti","Odgovorna institucija","Vremenski okvir"]

{"sheet":"E04","index":6,"n_rows":44,"n_cols":6,"rows_kept":44,"cut":false,"hidden":false,"merged":[[15,2,15,3],[3,2,3,3],[4,2,4,3],[5,2,5,3],[6,2,9,3],[14,2,14,3],[36,2,36,3],[37,2,37,3],[38,2,38,3],[39,2,42,3],[16,2,16,3],[17,2,20,3],[25,2,25,3],[26,2,26,3],[27,2,27,3],[28,2,31,3]]}
[]
[]
[null,"P4.1 - Zoniranje po namenama zemljišta"]
[null,"Pitanje","Komentari"]
[]
[null,"Odgovor","Navedite načine verifikacije/potvrde (objašnjenje i dokaze)"]
[null,null,null,null,null,{"$f":"IF(E7=1,TRUE,FALSE)","v":false}]
[null,null,null,null,null,{"$f":"IF(E7=2,TRUE,FALSE)","v":false}]
[null,null,null,null,null,{"$f":"IF(E7=3,TRUE,FALSE)","v":false}]
[null,null,null,null,null,{"$f":"IF(E7=4,TRUE,FALSE)","v":false}]
[null,"Akcije za postizanje maksimalne otpornosti","Odgovorna institucija","Vremenski okvir"]
[]
[]
[null,"P4.2 - Nov urbani razvoj"]
[null,"Pitanje","Komentari"]
[]
[null,"Odgovor","Navedite načine verifikacije/potvrde (objašnjenje i dokaze)"]
[null,null,null,null,null,{"$f":"IF(E18=1,TRUE,FALSE)","v":false}]
[null,null,null,null,null,{"$f":"IF(E18=2,TRUE,FALSE)","v":false}]
[null,null,null,null,null,{"$f":"IF(E18=3,TRUE,FALSE)","v":false}]
[null,null,null,null,null,{"$f":"IF(E18=4,TRUE,FALSE)","v":false}]
[null,"Akcije za postizanje maksimalne otpornosti","Odgovorna institucija","Vremenski okvir"]
[]
[]
[null,"P4.3 - Građevinski kodeksi i standardi"]
[null,"Pitanje","Komentari"]
[]
[null,"Odgovor","Navedite načine verifikacije/potvrde (objašnjenje i dokaze)"]
[null,null,null,null,null,{"$f":"IF(E29=1,TRUE,FALSE)","v":false}]
[null,null,null,null,null,{"$f":"IF(E29=2,TRUE,FALSE)","v":false}]
[null,null,null,null,null,{"$f":"IF(E29=3,TRUE,FALSE)","v":false}]
[null,null,null,null,null,{"$f":"IF(E29=4,TRUE,FALSE)","v":false}]
[null,"Akcije za postizanje maksimalne otpornosti","Odgovorna institucija","Vremenski okvir"]
[]
[]
[null,"P4.4 - Primena zoniranja, građevinskih kodeksa i standarda"]
[null,"Pitanje","Komentari"]
[]
[null,"Odgovor","Navedite načine verifikacije/potvrde (objašnjenje i dokaze)"]
[null,null,null,null,null,{"$f":"IF(E40=1,TRUE,FALSE)","v":false}]
[null,null,null,null,null,{"$f":"IF(E40=2,TRUE,FALSE)","v":false}]
[null,null,null,null,null,{"$f":"IF(E40=3,TRUE,FALSE)","v":false}]
[null,null,null,null,null,{"$f":"IF(E40=4,TRUE,FALSE)","v":false}]
[null,"Akcije za postizanje maksimalne otpornosti","Odgovorna institucija","Vremenski okvir"]

{"sheet":"E05","index":7,"n_rows":33,"n_cols":6,"rows_kept":33,"cut":false,"hidden":false,"merged":[[28,2,31,3],[3,2,3,3],[4,2,4,3],[5,2,5,3],[6,2,9,3],[14,2,14,3],[15,2,15,3],[16,2,16,3],[17,2,20,3],[25,2,25,3],[26,2,26,3],[27,2,27,3]]}
[]
[]
[null,"P5.1 - Svest i razumevanje usluga/funkcija ekosistema"]
[null,"Pitanje","Komentari"]
[]
[null,"Odgovor","Navedite načine verifikacije/potvrde (objašnjenje i dokaze)"]
[null,null,null,null,null,{"$f":"IF(E7=1,TRUE,FALSE)","v":false}]
[null,null,null,null,null,{"$f":"IF(E7=2,TRUE,FALSE)","v":false}]
[null,null,null,null,null,{"$f":"IF(E7=3,TRUE,FALSE)","v":false}]
[null,null,null,null,null,{"$f":"IF(E7=4,TRUE,FALSE)","v":false}]
[null,"Akcije za postizanje maksimalne otpornosti","Odgovorna institucija","Vremenski okvir"]
[]
[]
[null,"P5.2 - Integracija zelene i plave infrastrukture u gradsku politiku i projekte"]
[null,"Pitanje","Komentari"]
[]
[null,"Odgovor","Navedite načine verifikacije/potvrde (objašnjenje i dokaze)"]
[null,null,null,null,null,{"$f":"IF(E18=1,TRUE,FALSE)","v":false}]
[null,null,null,null,null,{"$f":"IF(E18=2,TRUE,FALSE)","v":false}]
[null,null,null,null,null,{"$f":"IF(E18=3,TRUE,FALSE)","v":false}]
[null,null,null,null,null,{"$f":"IF(E18=4,TRUE,FALSE)","v":false}]
[null,"Akcije za postizanje maksimalne otpornosti","Odgovorna institucija","Vremenski okvir"]
[]
[]
[null,"P5.3 - Prekogranična pitanja životne sredine"]
[null,"Pitanje","Komentari"]
[]
[null,"Odgovor","Navedite načine verifikacije/potvrde (objašnjenje i dokaze)"]
[null,null,null,null,null,{"$f":"IF(E29=1,TRUE,FALSE)","v":false}]
[null,null,null,null,null,{"$f":"IF(E29=2,TRUE,FALSE)","v":false}]
[null,null,null,null,null,{"$f":"IF(E29=3,TRUE,FALSE)","v":false}]
[null,null,null,null,null,{"$f":"IF(E29=4,TRUE,FALSE)","v":false}]
[null,"Akcije za postizanje maksimalne otpornosti","Odgovorna institucija","Vremenski okvir"]

{"sheet":"E06","index":8,"n_rows":66,"n_cols":6,"rows_kept":66,"cut":false,"hidden":false,"merged":[[28,2,31,3],[3,2,3,3],[4,2,4,3],[5,2,5,3],[6,2,9,3],[14,2,14,3],[15,2,15,3],[16,2,16,3],[17,2,20,3],[25,2,25,3],[26,2,26,3],[27,2,27,3],[61,2,64,3],[36,2,36,3],[37,2,37,3],[38,2,38,3],[39,2,42,3],[47,2,47,3],[48,2,48,3],[49,2,49,3],[50,2,53,3],[58,2,58,3],[59,2,59,3],[60,2,60,3]]}
[]
[]
[null,"P6.1 - Veštine i iskustvo"]
[null,"Pitanje","Komentari"]
[]
[null,"Odgovor","Navedite načine verifikacije/potvrde (objašnjenje i dokaze)"]
[null,null,null,null,null,{"$f":"IF(E7=1,TRUE,FALSE)","v":false}]
[null,null,null,null,null,{"$f":"IF(E7=2,TRUE,FALSE)","v":false}]
[null,null,null,null,null,{"$f":"IF(E7=3,TRUE,FALSE)","v":false}]
[null,null,null,null,null,{"$f":"IF(E7=4,TRUE,FALSE)","v":false}]
[null,"Akcije za postizanje maksimalne otpornosti","Odgovorna institucija","Vremenski okvir"]
[]
[]
[null,"P6.2 - Obrazovanje javnosti i podizanje javne svesti"]
[null,"Pitanje","Komentari"]
[]
[null,"Odgovor","Navedite načine verifikacije/potvrde (objašnjenje i dokaze)"]
[null,null,null,null,null,{"$f":"IF(E18=1,TRUE,FALSE)","v":false}]
[null,null,null,null,null,{"$f":"IF(E18=2,TRUE,FALSE)","v":false}]
[null,null,null,null,null,{"$f":"IF(E18=3,TRUE,FALSE)","v":false}]
[null,null,null,null,null,{"$f":"IF(E18=4,TRUE,FALSE)","v":false}]
[null,"Akcije za postizanje maksimalne otpornosti","Odgovorna institucija","Vremenski okvir"]
[]
[]
[null,"P6.3 - Deljenje podataka"]
[null,"Pitanje","Komentari"]
[]
[null,"Odgovor","Navedite načine verifikacije/potvrde (objašnjenje i dokaze)"]
[null,null,null,null,null,{"$f":"IF(E29=1,TRUE,FALSE)","v":false}]
[null,null,null,null,null,{"$f":"IF(E29=2,TRUE,FALSE)","v":false}]
[null,null,null,null,null,{"$f":"IF(E29=3,TRUE,FALSE)","v":false}]
[null,null,null,null,null,{"$f":"IF(E29=4,TRUE,FALSE)","v":false}]
[null,"Akcije za postizanje maksimalne otpornosti","Odgovorna institucija","Vremenski okvir"]
[]
[]
[null,"P6.4 - Pružanje obuke"]
[null,"Pitanje","Komentari"]
[]
[null,"Odgovor","Navedite načine verifikacije/potvrde (objašnjenje i dokaze)"]
[null,null,null,null,null,{"$f":"IF(E40=1,TRUE,FALSE)","v":false}]
[null,null,null,null,null,{"$f":"IF(E40=2,TRUE,FALSE)","v":false}]
[null,null,null,null,null,{"$f":"IF(E40=3,TRUE,FALSE)","v":false}]
[null,null,null,null,null,{"$f":"IF(E40=4,TRUE,FALSE)","v":false}]
[null,"Akcije za postizanje maksimalne otpornosti","Odgovorna institucija","Vremenski okvir"]
[]
[]
[null,"P6.5 - Jezici"]
[null,"Pitanje","Komentari"]
[]
[null,"Odgovor","Navedite načine verifikacije/potvrde (objašnjenje i dokaze)"]
[null,null,null,null,null,{"$f":"IF(E51=1,TRUE,FALSE)","v":false}]
[null,null,null,null,null,{"$f":"IF(E51=2,TRUE,FALSE)","v":false}]
[null,null,null,null,null,{"$f":"IF(E51=3,TRUE,FALSE)","v":false}]
[null,null,null,null,null,{"$f":"IF(E51=4,TRUE,FALSE)","v":false}]
[null,"Akcije za postizanje maksimalne otpornosti","Odgovorna institucija","Vremenski okvir"]
[]
[]
[null,"P6.6 - Učenje od drugih"]
[null,"Pitanje","Komentari"]
[]
[null,"Odgovor","Navedite načine verifikacije/potvrde (objašnjenje i dokaze)"]
[null,null,null,null,null,{"$f":"IF(E62=1,TRUE,FALSE)","v":false}]
[null,null,null,null,null,{"$f":"IF(E62=2,TRUE,FALSE)","v":false}]
[null,null,null,null,null,{"$f":"IF(E62=3,TRUE,FALSE)","v":false}]
[null,null,null,null,null,{"$f":"IF(E62=4,TRUE,FALSE)","v":false}]
[null,"Akcije za postizanje maksimalne otpornosti","Odgovorna institucija","Vremenski okvir"]

{"sheet":"E07","index":9,"n_rows":44,"n_cols":6,"rows_kept":44,"cut":false,"hidden":false,"merged":[[15,2,15,3],[3,2,3,3],[4,2,4,3],[5,2,5,3],[6,2,9,3],[14,2,14,3],[36,2,36,3],[37,2,37,3],[38,2,38,3],[39,2,42,3],[16,2,16,3],[17,2,20,3],[25,2,25,3],[26,2,26,3],[27,2,27,3],[28,2,31,3]]}
[]
[]
[null,"P7.1 - Društvene organizacije ili organizacije građanskog aktivizma, mreže i obuka"]
[null,"Pitanje","Komentari"]
[]
[null,"Odgovor","Navedite načine verifikacije/potvrde (objašnjenje i dokaze)"]
[null,null,null,null,null,{"$f":"IF(E7=1,TRUE,FALSE)","v":false}]
[null,null,null,null,null,{"$f":"IF(E7=2,TRUE,FALSE)","v":false}]
[null,null,null,null,null,{"$f":"IF(E7=3,TRUE,FALSE)","v":false}]
[null,null,null,null,null,{"$f":"IF(E7=4,TRUE,FALSE)","v":false}]
[null,"Akcije za postizanje maksimalne otpornosti","Odgovorna institucija","Vremenski okvir"]
[]
[]
[null,"P7.2 - Društvene mreže “Nikoga ne ostaviti iza sebe”"]
[null,"Pitanje","Komentari"]
[]
[null,"Odgovor","Navedite načine verifikacije/potvrde (objašnjenje i dokaze)"]
[null,null,null,null,null,{"$f":"IF(E18=1,TRUE,FALSE)","v":false}]
[null,null,null,null,null,{"$f":"IF(E18=2,TRUE,FALSE)","v":false}]
[null,null,null,null,null,{"$f":"IF(E18=3,TRUE,FALSE)","v":false}]
[null,null,null,null,null,{"$f":"IF(E18=4,TRUE,FALSE)","v":false}]
[null,"Akcije za postizanje maksimalne otpornosti","Odgovorna institucija","Vremenski okvir"]
[]
[]
[null,"P7.3 - Privatni sektor / poslodavci"]
[null,"Pitanje","Komentari"]
[]
[null,"Odgovor","Navedite načine verifikacije/potvrde (objašnjenje i dokaze)"]
[null,null,null,null,null,{"$f":"IF(E29=1,TRUE,FALSE)","v":false}]
[null,null,null,null,null,{"$f":"IF(E29=2,TRUE,FALSE)","v":false}]
[null,null,null,null,null,{"$f":"IF(E29=3,TRUE,FALSE)","v":false}]
[null,null,null,null,null,{"$f":"IF(E29=4,TRUE,FALSE)","v":false}]
[null,"Akcije za postizanje maksimalne otpornosti","Odgovorna institucija","Vremenski okvir"]
[]
[]
[null,"P7.4 - Tehnike za uključivanje građana"]
[null,"Pitanje","Komentari"]
[]
[null,"Odgovor","Navedite načine verifikacije/potvrde (objašnjenje i dokaze)"]
[null,null,null,null,null,{"$f":"IF(E40=1,TRUE,FALSE)","v":false}]
[null,null,null,null,null,{"$f":"IF(E40=2,TRUE,FALSE)","v":false}]
[null,null,null,null,null,{"$f":"IF(E40=3,TRUE,FALSE)","v":false}]
[null,null,null,null,null,{"$f":"IF(E40=4,TRUE,FALSE)","v":false}]
[null,"Akcije za postizanje maksimalne otpornosti","Odgovorna institucija","Vremenski okvir"]

{"sheet":"E08","index":10,"n_rows":99,"n_cols":6,"rows_kept":99,"cut":false,"hidden":false,"merged":[[69,2,69,3],[70,2,70,3],[71,2,71,3],[72,2,75,3],[28,2,31,3],[3,2,3,3],[4,2,4,3],[5,2,5,3],[6,2,9,3],[14,2,14,3],[15,2,15,3],[16,2,16,3],[17,2,20,3],[25,2,25,3],[26,2,26,3],[27,2,27,3],[61,2,64,3],[36,2,36,3],[37,2,37,3],[38,2,38,3],[39,2,42,3],[47,2,47,3],[48,2,48,3],[49,2,49,3],[50,2,53,3],[58,2,58,3],[59,2,59,3],[60,2,60,3],[94,2,97,3],[80,2,80,3],[81,2,81,3],[82,2,82,3],[83,2,86,3],[91,2,91,3],[92,2,92,3],[93,2,93,3]]}
[]
[]
[null,"P8.1 - Pregled ključne infrastrukture"]
[null,"Pitanje","Komentari"]
[]
[null,"Odgovor","Navedite načine verifikacije/potvrde (objašnjenje i dokaze)"]
[null,null,null,null,null,{"$f":"IF(E7=1,TRUE,FALSE)","v":false}]
[null,null,null,null,null,{"$f":"IF(E7=2,TRUE,FALSE)","v":false}]
[null,null,null,null,null,{"$f":"IF(E7=3,TRUE,FALSE)","v":false}]
[null,null,null,null,null,{"$f":"IF(E7=4,TRUE,FALSE)","v":false}]
[null,"Akcije za postizanje maksimalne otpornosti","Odgovorna institucija","Vremenski okvir"]
[]
[]
[null,"P8.2 - Zaštitna infrastruktura"]
[null,"Pitanje","Komentari"]
[]
[null,"Odgovor","Navedite načine verifikacije/potvrde (objašnjenje i dokaze)"]
[null,null,null,null,null,{"$f":"IF(E18=1,TRUE,FALSE)","v":false}]
[null,null,null,null,null,{"$f":"IF(E18=2,TRUE,FALSE)","v":false}]
[null,null,null,null,null,{"$f":"IF(E18=3,TRUE,FALSE)","v":false}]
[null,null,null,null,null,{"$f":"IF(E18=4,TRUE,FALSE)","v":false}]
[null,"Akcije za postizanje maksimalne otpornosti","Odgovorna institucija","Vremenski okvir"]
[]
[]
[null,"P8.3 - Pijaća voda i voda za sanitarne delatnosti"]
[null,"Pitanje","Komentari"]
[]
[null,"Odgovor","Navedite načine verifikacije/potvrde (objašnjenje i dokaze)"]
[null,null,null,null,null,{"$f":"IF(E29=1,TRUE,FALSE)","v":false}]
[null,null,null,null,null,{"$f":"IF(E29=2,TRUE,FALSE)","v":false}]
[null,null,null,null,null,{"$f":"IF(E29=3,TRUE,FALSE)","v":false}]
[null,null,null,null,null,{"$f":"IF(E29=4,TRUE,FALSE)","v":false}]
[null,"Akcije za postizanje maksimalne otpornosti","Odgovorna institucija","Vremenski okvir"]
[]
[]
[null,"P8.4 - Električna energija"]
[null,"Pitanje","Komentari"]
[]
[null,"Odgovor","Navedite načine verifikacije/potvrde (objašnjenje i dokaze)"]
[null,null,null,null,null,{"$f":"IF(E40=1,TRUE,FALSE)","v":false}]
[null,null,null,null,null,{"$f":"IF(E40=2,TRUE,FALSE)","v":false}]
[null,null,null,null,null,{"$f":"IF(E40=3,TRUE,FALSE)","v":false}]
[null,null,null,null,null,{"$f":"IF(E40=4,TRUE,FALSE)","v":false}]
[null,"Akcije za postizanje maksimalne otpornosti","Odgovorna institucija","Vremenski okvir"]
[]
[]
[null,"P8.5 - Transport"]
[null,"Pitanje","Komentari"]
[]
[null,"Odgovor","Navedite načine verifikacije/potvrde (objašnjenje i dokaze)"]
[null,null,null,null,null,{"$f":"IF(E51=1,TRUE,FALSE)","v":false}]
[null,null,null,null,null,{"$f":"IF(E51=2,TRUE,FALSE)","v":false}]
[null,null,null,null,null,{"$f":"IF(E51=3,TRUE,FALSE)","v":false}]
[null,null,null,null,null,{"$f":"IF(E51=4,TRUE,FALSE)","v":false}]
[null,"Akcije za postizanje maksimalne otpornosti","Odgovorna institucija","Vremenski okvir"]
[]
[]
[null,"P8.6 - Sredstva komunikacije"]
[null,"Pitanje","Komentari"]
[]
[null,"Odgovor","Navedite načine verifikacije/potvrde (objašnjenje i dokaze)"]
[null,null,null,null,null,{"$f":"IF(E62=1,TRUE,FALSE)","v":false}]
[null,null,null,null,null,{"$f":"IF(E62=2,TRUE,FALSE)","v":false}]
[null,null,null,null,null,{"$f":"IF(E62=3,TRUE,FALSE)","v":false}]
[null,null,null,null,null,{"$f":"IF(E62=4,TRUE,FALSE)","v":false}]
[null,"Akcije za postizanje maksimalne otpornosti","Odgovorna institucija","Vremenski okvir"]
[]
[]
[null,"P8.7 - Zdravstvena nega"]
[null,"Pitanje","Komentari"]
[]
[null,"Odgovor","Navedite načine verifikacije/potvrde (objašnjenje i dokaze)"]
[null,null,null,null,null,{"$f":"IF(E73=1,TRUE,FALSE)","v":false}]
[null,null,null,null,null,{"$f":"IF(E73=2,TRUE,FALSE)","v":false}]
[null,null,null,null,null,{"$f":"IF(E73=3,TRUE,FALSE)","v":false}]
[null,null,null,null,null,{"$f":"IF(E73=4,TRUE,FALSE)","v":false}]
[null,"Akcije za postizanje maksimalne otpornosti","Odgovorna institucija","Vremenski okvir"]
[]
[]
[null,"P8.8 - Obrazovne ustanove"]
[null,"Pitanje","Komentari"]
[]
[null,"Odgovor","Navedite načine verifikacije/potvrde (objašnjenje i dokaze)"]
[null,null,null,null,null,{"$f":"IF(E84=1,TRUE,FALSE)","v":false}]
[null,null,null,null,null,{"$f":"IF(E84=2,TRUE,FALSE)","v":false}]
[null,null,null,null,null,{"$f":"IF(E84=3,TRUE,FALSE)","v":false}]
[null,null,null,null,null,{"$f":"IF(E84=4,TRUE,FALSE)","v":false}]
[null,"Akcije za postizanje maksimalne otpornosti","Odgovorna institucija","Vremenski okvir"]
[]
[]
[null,"P8.9 - Sredstva za prvi odgovor na katastrofe"]
[null,"Pitanje","Komentari"]
[]
[null,"Odgovor","Navedite načine verifikacije/potvrde (objašnjenje i dokaze)"]
[null,null,null,null,null,{"$f":"IF(E95=1,TRUE,FALSE)","v":false}]
[null,null,null,null,null,{"$f":"IF(E95=2,TRUE,FALSE)","v":false}]
[null,null,null,null,null,{"$f":"IF(E95=3,TRUE,FALSE)","v":false}]
[null,null,null,null,null,{"$f":"IF(E95=4,TRUE,FALSE)","v":false}]
[null,"Akcije za postizanje maksimalne otpornosti","Odgovorna institucija","Vremenski okvir"]

{"sheet":"E09","index":11,"n_rows":77,"n_cols":6,"rows_kept":77,"cut":false,"hidden":false,"merged":[[70,2,70,3],[71,2,71,3],[72,2,75,3],[58,2,58,3],[59,2,59,3],[60,2,60,3],[61,2,64,3],[69,2,69,3],[39,2,42,3],[47,2,47,3],[48,2,48,3],[49,2,49,3],[50,2,53,3],[27,2,27,3],[28,2,31,3],[36,2,36,3],[37,2,37,3],[38,2,38,3],[15,2,15,3],[16,2,16,3],[17,2,20,3],[25,2,25,3],[26,2,26,3],[3,2,3,3],[4,2,4,3],[5,2,5,3],[6,2,9,3],[14,2,14,3]]}
[]
[]
[null,"P9.1 - Rano upozoravanje"]
[null,"Pitanje","Komentari"]
[]
[null,"Odgovor","Navedite načine verifikacije/potvrde (objašnjenje i dokaze)"]
[null,null,null,null,null,{"$f":"IF(E7=1,TRUE,FALSE)","v":false}]
[null,null,null,null,null,{"$f":"IF(E7=2,TRUE,FALSE)","v":false}]
[null,null,null,null,null,{"$f":"IF(E7=3,TRUE,FALSE)","v":false}]
[null,null,null,null,null,{"$f":"IF(E7=4,TRUE,FALSE)","v":false}]
[null,"Akcije za postizanje maksimalne otpornosti","Odgovorna institucija","Vremenski okvir"]
[]
[]
[null,"P9.2 - Planovi za slučaj katastrofe"]
[null,"Pitanje","Komentari"]
[]
[null,"Odgovor","Navedite načine verifikacije/potvrde (objašnjenje i dokaze)"]
[null,null,null,null,null,{"$f":"IF(E18=1,TRUE,FALSE)","v":false}]
[null,null,null,null,null,{"$f":"IF(E18=2,TRUE,FALSE)","v":false}]
[null,null,null,null,null,{"$f":"IF(E18=3,TRUE,FALSE)","v":false}]
[null,null,null,null,null,{"$f":"IF(E18=4,TRUE,FALSE)","v":false}]
[null,"Akcije za postizanje maksimalne otpornosti","Odgovorna institucija","Vremenski okvir"]
[]
[]
[null,"P9.3 - Potrebe vezane za sastavljanje kadrova / odgovor"]
[null,"Pitanje","Komentari"]
[]
[null,"Odgovor","Navedite načine verifikacije/potvrde (objašnjenje i dokaze)"]
[null,null,null,null,null,{"$f":"IF(E29=1,TRUE,FALSE)","v":false}]
[null,null,null,null,null,{"$f":"IF(E29=2,TRUE,FALSE)","v":false}]
[null,null,null,null,null,{"$f":"IF(E29=3,TRUE,FALSE)","v":false}]
[null,null,null,null,null,{"$f":"IF(E29=4,TRUE,FALSE)","v":false}]
[null,"Akcije za postizanje maksimalne otpornosti","Odgovorna institucija\\","Vremenski okvir"]
[]
[]
[null,"P9.4 - Potrebe vezane za opremu i pružanje pomoći"]
[null,"Pitanje","Komentari"]
[]
[null,"Odgovor","Navedite načine verifikacije/potvrde (objašnjenje i dokaze)"]
[null,null,null,null,null,{"$f":"IF(E40=1,TRUE,FALSE)","v":false}]
[null,null,null,null,null,{"$f":"IF(E40=2,TRUE,FALSE)","v":false}]
[null,null,null,null,null,{"$f":"IF(E40=3,TRUE,FALSE)","v":false}]
[null,null,null,null,null,{"$f":"IF(E40=4,TRUE,FALSE)","v":false}]
[null,"Akcije za postizanje maksimalne otpornosti","Odgovorna institucija","Vremenski okvir"]
[]
[]
[null,"P9.5 - Hrana, skloništa, zalihe osnovnih namirnica i goriva"]
[null,"Pitanje","Komentari"]
[]
[null,"Odgovor","Navedite načine verifikacije/potvrde (objašnjenje i dokaze)"]
[null,null,null,null,null,{"$f":"IF(E51=1,TRUE,FALSE)","v":false}]
[null,null,null,null,null,{"$f":"IF(E51=2,TRUE,FALSE)","v":false}]
[null,null,null,null,null,{"$f":"IF(E51=3,TRUE,FALSE)","v":false}]
[null,null,null,null,null,{"$f":"IF(E51=4,TRUE,FALSE)","v":false}]
[null,"Akcije za postizanje maksimalne otpornosti","Odgovorna institucija","Vremenski okvir"]
[]
[]
[null,"P9.6 - Interoperabilnost i zajednički rad različitih agencija"]
[null,"Pitanje","Komentari"]
[]
[null,"Odgovor","Navedite načine verifikacije/potvrde (objašnjenje i dokaze)"]
[null,null,null,null,null,{"$f":"IF(E62=1,TRUE,FALSE)","v":false}]
[null,null,null,null,null,{"$f":"IF(E62=2,TRUE,FALSE)","v":false}]
[null,null,null,null,null,{"$f":"IF(E62=3,TRUE,FALSE)","v":false}]
[null,null,null,null,null,{"$f":"IF(E62=4,TRUE,FALSE)","v":false}]
[null,"Akcije za postizanje maksimalne otpornosti","Odgovorna institucija","Vremenski okvir"]
[]
[]
[null,"P9.7 - Vežbe"]
[null,"Pitanje","Komentari"]
[]
[null,"Odgovor","Navedite načine verifikacije/potvrde (objašnjenje i dokaze)"]
[null,null,null,null,null,{"$f":"IF(E73=1,TRUE,FALSE)","v":false}]
[null,null,null,null,null,{"$f":"IF(E73=2,TRUE,FALSE)","v":false}]
[null,null,null,null,null,{"$f":"IF(E73=3,TRUE,FALSE)","v":false}]
[null,null,null,null,null,{"$f":"IF(E73=4,TRUE,FALSE)","v":false}]
[null,"Akcije za postizanje maksimalne otpornosti","Odgovorna institucija","Vremenski okvir"]

{"sheet":"E10","index":12,"n_rows":22,"n_cols":6,"rows_kept":22,"cut":false,"hidden":false,"merged":[[15,2,15,3],[16,2,16,3],[17,2,20,3],[3,2,3,3],[4,2,4,3],[5,2,5,3],[6,2,9,3],[14,2,14,3]]}
[]
[]
[null,"P10.1 - Planiranje oporavka posle katastrofe – planiranje pre katastrofe"]
[null,"Pitanje","Komentari"]
[]
[null,"Odgovor","Navedite načine verifikacije/potvrde (objašnjenje i dokaze)"]
[null,null,null,null,null,{"$f":"IF(E7=1,TRUE,FALSE)","v":false}]
[null,null,null,null,null,{"$f":"IF(E7=2,TRUE,FALSE)","v":false}]
[null,null,null,null,null,{"$f":"IF(E7=3,TRUE,FALSE)","v":false}]
[null,null,null,null,null,{"$f":"IF(E7=4,TRUE,FALSE)","v":false}]
[null,"Akcije za postizanje maksimalne otpornosti","Odgovorna institucija","Vremenski okvir"]
[]
[]
[null,"P10.2 - Naučene lekcije / krugovi učenja"]
[null,"Pitanje","Komentari"]
[]
[null,"Odgovor","Navedite načine verifikacije/potvrde (objašnjenje i dokaze)"]
[null,null,null,null,null,{"$f":"IF(E18=1,TRUE,FALSE)","v":false}]
[null,null,null,null,null,{"$f":"IF(E18=2,TRUE,FALSE)","v":false}]
[null,null,null,null,null,{"$f":"IF(E18=3,TRUE,FALSE)","v":false}]
[null,null,null,null,null,{"$f":"IF(E18=4,TRUE,FALSE)","v":false}]
[null,"Akcije za postizanje maksimalne otpornosti","Odgovorna institucija","Vremenski okvir"]

{"sheet":"About","index":13,"n_rows":0,"n_cols":0,"rows_kept":0,"cut":false,"hidden":false,"merged":[]}